bitfinex-derivatives/quotes_SOLF0:USTF0_20250530
["timestamp","ask_amount","ask_price","bid_price","bid_amount"]
[1748597606926,6.17931335,162.97,162.95,31.14]
[1748597607120,0.04541335,162.97,162.95,31.14]
[1748597608222,0.04541335,162.97,162.95,37.2741]
[1748597608925,0.04541335,162.97,162.96,6.134]
[1748597609623,2.0449,163.01,162.96,6.134]
[1748597609624,31.14,163.07,163.0,6.1325]
[1748597609824,2.0309,163.07,162.99,31.14]
[1748597610222,2.0309,163.07,163.0,6.1324]
[1748597610419,2.0309,163.07,162.99,31.14]
[1748597610619,6.17064667,163.05,163.01,6.17229284]
[1748597610923,0.03964667,163.05,163.01,0.04029284]
[1748597611226,6.1317,163.02,163.01,0.04029284]
[1748597612125,6.1325,163.0,162.99,31.14]
[1748597612522,2.0982,163.06,162.96,31.34]
[1748597613124,0.04334739,163.03,162.99,0.04496231]
[1748597613524,6.1325,163.0,162.99,0.04496231]
[1748597613721,0.04334739,163.03,162.96,31.34]
[1748597614025,31.34,163.04,162.96,31.34]
[1748597614733,0.04580091,163.02,162.96,31.34]
[1748597615132,6.1332,162.99,162.96,31.34]
[1748597615530,0.04580091,163.02,162.96,31.34]
[1748597615830,6.1336,162.97,162.96,31.34]
[1748597617133,6.1344,162.95,162.93,31.34]
[1748597617533,6.1341,162.96,162.93,37.475]
[1748597617733,0.04480863,162.98,162.93,37.475]
[1748597617933,0.04480863,162.98,162.93,31.34]
[1748597618135,6.1343,162.96,162.93,31.34]
[1748597618335,0.04480863,162.98,162.93,31.34]
[1748597619735,6.17830863,162.98,162.94,6.1345]
[1748597620132,6.1338,162.97,162.94,6.1345]
[1748597620432,0.04480863,162.98,162.93,37.475]
[1748597620835,6.1343,162.96,162.93,37.475]
[1748597621036,0.04480863,162.98,162.93,37.475]
[1748597621237,0.04480863,162.98,162.93,31.34]
[1748597621438,6.1348,162.94,162.93,31.34]
[1748597627743,2.0956,162.97,162.93,31.34]
[1748597628440,6.1342,162.96,162.93,37.4749]
[1748597628645,0.04480863,162.98,162.93,31.34]
[1748597628945,6.1337,162.97,162.94,6.1344]
[1748597629147,0.04480863,162.98,162.93,31.34]
[1748597629448,6.17830863,162.98,162.95,6.1341]
[1748597629649,0.04480863,162.98,162.93,31.34]
[1748597630149,6.17830863,162.98,162.95,6.1341]
[1748597633551,0.04480863,162.98,162.96,6.134]
[1748597634755,6.17810863,162.98,162.95,6.1342]
[1748597636151,0.04480863,162.98,162.96,6.1339]
[1748597636351,0.04480863,162.98,162.97,31.34]
[1748597636650,4.1922,163.05,162.99,6.1327]
[1748597636854,6.1318,163.02,162.99,6.1327]
[1748597637054,4.1922,163.05,162.97,31.34]
[1748597637253,6.1322,163.01,162.98,6.133]
[1748597637657,6.17380272,163.01,162.98,0.03933616]
[1748597637955,0.04160272,163.01,162.99,6.1328]
[1748597638550,0.04160272,163.01,162.98,0.03933616]
[1748597639251,6.1329,162.99,162.98,0.03933616]
[1748597639456,0.04160272,163.01,162.94,31.34]
[1748597639652,0.04160272,163.01,162.89,529.88]
[1748597639653,6.1347,162.95,162.93,31.34]
[1748597640455,6.1348,162.94,162.93,31.34]
[1748597640657,0.04036407,162.95,162.93,31.34]
[1748597640955,0.0426181,162.96,162.93,31.34]
[1748597641152,0.03949604,162.96,162.94,6.1347]
[1748597641450,0.03949604,162.96,162.93,31.3614596]
[1748597641650,0.03949604,162.96,162.94,6.1346]
[1748597641847,0.03949604,162.96,162.93,31.3614596]
[1748597642558,6.17369604,162.96,162.93,31.3614596]
[1748597645250,0.03949604,162.96,162.93,31.3614596]
[1748597647054,6.17379604,162.96,162.93,31.3614596]
[1748597648054,6.1344,162.95,162.93,31.3614596]
[1748597649167,6.1347,162.94,162.93,31.3614596]
[1748597649366,0.03949604,162.96,162.93,31.3614596]
[1748597649658,0.03949604,162.96,162.9,31.6]
[1748597650154,6.1359,162.91,162.9,31.6]
[1748597651058,0.04569036,162.92,162.9,31.6]
[1748597651663,0.04569036,162.92,162.91,6.1359]
[1748597659262,0.04569036,162.92,162.9,31.6]
[1748597660373,0.04569036,162.92,162.9,37.736]
[1748597660571,0.04569036,162.92,162.9,31.6]
[1748597660874,0.04569036,162.92,162.91,6.1359]
[1748597661067,0.04569036,162.92,162.9,31.6]
[1748597661467,0.04569036,162.92,162.87,31.6]
[1748597661870,6.137,162.88,162.87,31.6]
[1748597662965,0.04569036,162.92,162.87,31.6]
[1748597664074,6.1367,162.89,162.87,31.6]
[1748597665472,6.137,162.88,162.87,31.6]
[1748597667272,6.1376,162.87,162.85,122.7277876]
[1748597667773,6.1378,162.86,162.84,31.6]
[1748597669368,6.1374,162.87,162.84,31.6]
[1748597669565,0.04715114,162.88,162.84,31.6]
[1748597669771,6.1375,162.87,162.84,31.6]
[1748597669974,0.04715114,162.88,162.84,31.6]
[1748597670272,6.1381,162.85,162.84,31.6]
[1748597670669,0.04715114,162.88,162.84,31.6]
[1748597670869,6.1378,162.86,162.84,31.6]
[1748597671878,6.1378,162.86,162.84,31.66]
[1748597672074,0.04715114,162.88,162.84,31.66]
[1748597672272,0.04715114,162.88,162.85,6.1378]
[1748597672673,6.1375,162.87,162.84,31.66]
[1748597673279,6.1375,162.87,162.84,37.7984]
[1748597676383,6.18425114,162.88,162.85,6.1381]
[1748597676680,0.04715114,162.88,162.84,31.66]
[1748597676882,6.1374,162.87,162.84,37.7982]
[1748597677689,6.18425114,162.88,162.85,6.138]
[1748597677977,0.04715114,162.88,162.84,31.66]
[1748597679680,6.18425114,162.88,162.85,6.1379]
[1748597679880,0.04715114,162.88,162.85,6.1379]
[1748597680981,6.18425114,162.88,162.85,6.1379]
[1748597681383,0.00781498,162.88,162.84,38.4402495]
[1748597681685,4.0806,163.0,162.87,6.7802495]
[1748597681892,6.1342,162.96,162.92,6.1352]
[1748597682180,6.1342,162.96,162.92,37.8152]
[1748597682382,1.9747,162.99,162.92,37.8152]
[1748597682586,0.04636412,162.97,162.94,0.04561671]
[1748597682774,6.134,162.96,162.94,0.04561671]
[1748597683675,6.17996412,162.97,162.94,0.04561671]
[1748597684086,0.04636412,162.97,162.94,0.04561671]
[1748597685087,0.04636412,162.97,162.95,6.1341]
[1748597685290,0.04636412,162.97,162.94,0.04561671]
[1748597685291,0.04636412,162.97,162.96,31.66]
[1748597689495,6.17996412,162.97,162.96,31.66]
[1748597695100,6.1344,162.95,162.94,0.04561671]
[1748597699599,0.04636412,162.97,162.9,31.66]
[1748597699801,2.0308,162.96,162.9,31.66]
[1748597700192,6.1359,162.91,162.9,31.66]
[1748597700401,0.04323863,162.92,162.87,31.66]
[1748597700598,2.0308,162.96,162.86,31.66]
[1748597700797,0.04311693,162.91,162.86,31.66]
[1748597701098,6.1373,162.88,162.86,31.66]
[1748597701497,6.1367,162.89,162.86,37.7975]
[1748597702499,6.1371,162.88,162.86,31.66]
[1748597702697,0.04311693,162.91,162.86,31.66]
[1748597704008,6.1374,162.87,162.86,31.66]
[1748597704192,1.9788,162.9,162.83,31.44]
[1748597704495,6.1385,162.84,162.83,31.44]
[1748597707299,6.1393,162.82,162.81,529.88]
[1748597707498,0.04004922,162.83,162.77,31.44]
[1748597707801,0.03890098,162.82,162.76,31.44]
[1748597708002,0.03890098,162.82,162.77,31.44]
[1748597708801,0.03890098,162.82,162.79,6.14]
[1748597709006,6.17820098,162.82,162.79,6.14]
[1748597709608,0.03890098,162.82,162.79,6.14]
[1748597710200,0.03890098,162.82,162.77,38.2202495]
[1748597710504,0.03890098,162.82,162.77,158.1402495]
[1748597710700,6.17820098,162.82,162.79,6.1401]
[1748597710904,0.03890098,162.82,162.77,151.36]
[1748597711306,6.17820098,162.82,162.79,6.1401]
[1748597711605,0.03890098,162.82,162.77,151.36]
[1748597711806,0.03890098,162.82,162.79,6.1401]
[1748597712206,0.03890098,162.82,162.77,151.36]
[1748597712506,0.03890098,162.82,162.77,31.44]
[1748597713907,0.03890098,162.82,162.8,6.1397]
[1748597714104,0.03890098,162.82,162.62,373.4405]
[1748597714408,6.8379291,162.77,162.63,6.79565033]
[1748597714601,0.04021086,162.72,162.62,31.46]
[1748597714808,0.0443678,162.69,162.62,31.46]
[1748597715002,6.1448,162.68,162.62,37.6065]
[1748597715206,0.0443678,162.69,162.62,31.46]
[1748597715397,0.0443678,162.69,162.62,38.25565033]
[1748597715601,367.36,162.9,162.68,6.79565033]
[1748597715802,2.0841,162.81,162.69,31.46]
[1748597716010,1.9747,162.8,162.69,31.46]
[1748597716607,0.04248567,162.76,162.73,0.040763]
[1748597716911,6.1423,162.74,162.73,0.040763]
[1748597719314,0.04248567,162.76,162.69,31.46]
[1748597719809,6.1428,162.73,162.69,37.6039]
[1748597720010,31.46,162.78,162.69,31.46]
[1748597720211,0.04618835,162.75,162.73,6.1424]
[1748597720400,0.04618835,162.75,162.7,6.79565033]
[1748597721413,6.18808835,162.75,162.69,38.25565033]
[1748597722108,6.18808835,162.75,162.71,6.1432]
[1748597722806,6.1424,162.74,162.71,6.1432]
[1748597723008,0.04618835,162.75,162.71,6.1432]
[1748597723409,6.18818835,162.75,162.71,6.1432]
[1748597723902,0.04618835,162.75,162.71,6.1432]
[1748597724413,6.18818835,162.75,162.71,6.1432]
[1748597724614,6.18818835,162.75,162.72,6.1429]
[1748597724815,0.04618835,162.75,162.73,31.48]
[1748597725212,0.04618835,162.75,162.73,37.6224]
[1748597725411,0.04618835,162.75,162.73,31.48]
[1748597725715,0.04618835,162.75,162.74,6.1423]
[1748597726017,0.04618835,162.75,162.73,31.48]
[1748597728211,0.04618835,162.75,162.73,37.6226]
[1748597728414,0.04618835,162.75,162.73,31.48]
[1748597729318,0.04618835,162.75,162.74,6.1423]
[1748597730518,0.04618835,162.75,162.73,37.6225]
[1748597732419,0.04618835,162.75,162.74,6.1423]
[1748597732620,0.04618835,162.75,162.73,31.48]
[1748597733020,0.04618835,162.75,162.73,37.6224]
[1748597733621,0.04618835,162.75,162.74,6.1423]
[1748597734325,0.04618835,162.75,162.73,6.1426]
[1748597734525,0.04618835,162.75,162.74,31.74]
[1748597737027,0.04618835,162.75,162.74,37.8823]
[1748597737420,0.04618835,162.75,162.74,31.74]
[1748597737925,0.04618835,162.75,162.74,37.8823]
[1748597738522,0.04618835,162.75,162.74,31.74]
[1748597739118,6.18808835,162.75,162.74,31.74]
[1748597739923,0.04618835,162.75,162.74,31.74]
[1748597740524,0.04618835,162.75,162.74,37.8823]
[1748597741028,2.0841,162.81,162.74,31.74]
[1748597741221,3.945,162.87,162.76,6.79565033]
[1748597741625,6.1387,162.84,162.76,6.79565033]
[1748597741829,3.945,162.87,162.79,6.79565033]
[1748597742121,6.17811061,162.85,162.81,0.04140436]
[1748597742320,0.03981061,162.85,162.81,0.04140436]
[1748597743633,0.03981061,162.85,162.82,6.79565033]
[1748597744026,0.03981061,162.85,162.81,6.83705469]
[1748597744331,6.17821061,162.85,162.81,6.83705469]
[1748597744633,0.03981061,162.85,162.81,0.04140436]
[1748597744929,6.1389,162.83,162.81,0.04140436]
[1748597745131,0.03981061,162.85,162.81,0.04140436]
[1748597745337,6.1393,162.82,162.81,0.04140436]
[1748597745532,1.9716,162.84,162.78,31.74]
[1748597745721,4.0052,162.84,162.78,31.74]
[1748597746032,6.1404,162.79,162.78,31.74]
[1748597746630,4.0052,162.84,162.75,31.72]
[1748597746631,0.04213382,162.8,162.75,31.72]
[1748597746828,0.04213382,162.8,162.71,2.0014]
[1748597746829,0.04453631,162.79,162.74,31.72]
[1748597747033,6.1419,162.75,162.74,31.72]
[1748597752831,6.1416,162.76,162.74,31.72]
[1748597753234,0.04453631,162.79,162.74,31.72]
[1748597754132,6.1419,162.75,162.74,31.72]
[1748597754330,0.04453631,162.79,162.74,31.72]
[1748597754726,6.1415,162.76,162.74,31.72]
[1748597755934,0.04453631,162.79,162.74,31.72]
[1748597757535,6.1409,162.78,162.75,6.1417]
[1748597757838,0.04453631,162.79,162.74,31.72]
[1748597759237,6.1408,162.78,162.75,6.1417]
[1748597759443,0.04453631,162.79,162.76,6.79565033]
[1748597760337,0.04453631,162.79,162.78,6.1408]
[1748597760537,0.04453631,162.79,162.78,37.8808]
[1748597761146,0.04453631,162.79,162.78,31.74]
[1748597761541,6.18493631,162.79,162.78,31.74]
[1748597762946,6.1422,162.75,162.74,31.66]
[1748597763240,0.04453631,162.79,162.68,531.2112]
[1748597763241,0.0391185,162.76,162.72,31.66]
[1748597763444,0.0391185,162.76,162.71,31.66]
[1748597764545,6.143,162.72,162.71,31.66]
[1748597765541,0.0391185,162.76,162.68,562.1]
[1748597765741,0.04585124,162.74,162.68,562.1]
[1748597766844,6.1437,162.71,162.68,562.1]
[1748597767140,0.04585124,162.74,162.68,562.1]
[1748597767346,6.1441,162.7,162.68,530.42]
[1748597767945,0.04001863,162.71,162.67,31.68]
[1748597768145,0.04001863,162.71,162.66,31.68]
[1748597769136,6.144,162.7,162.67,6.1449]
[1748597769346,6.144,162.7,162.66,31.68]
[1748597770047,6.144,162.7,162.67,6.1449]
[1748597771039,6.18351863,162.71,162.68,6.1445]
[1748597771557,6.1438,162.7,162.67,6.1448]
[1748597772242,6.1449,162.67,162.66,31.68]
[1748597772447,0.04001863,162.71,162.66,31.68]
[1748597772948,6.1444,162.69,162.66,37.825]
[1748597773351,0.04001863,162.71,162.66,31.68]
[1748597773550,0.04001863,162.71,162.68,6.79565033]
[1748597774051,0.04001863,162.71,162.7,6.1438]
[1748597774247,4.0549,162.78,162.7,31.68]
[1748597774449,6.1409,162.78,162.71,6.79565033]
[1748597775049,6.1409,162.78,162.75,6.1418]
[1748597775250,6.18440891,162.78,162.75,37.86725926]
[1748597776253,0.04350891,162.78,162.75,31.72545926]
[1748597776453,2.122,162.77,162.75,0.04545926]
[1748597777255,6.1415,162.76,162.75,0.04545926]
[1748597779660,2.122,162.77,162.69,31.68]
[1748597779859,2.032,162.75,162.69,31.68]
[1748597780457,0.04147629,162.74,162.69,31.68]
[1748597781853,0.04147629,162.74,162.71,6.1433]
[1748597782050,0.04147629,162.74,162.69,31.68]
[1748597783159,0.04147629,162.74,162.7,6.1437]
[1748597783363,0.04147629,162.74,162.69,31.68]
[1748597783558,6.1438,162.71,162.69,31.68]
[1748597784464,6.1432,162.72,162.69,31.68]
[1748597784661,0.04147629,162.74,162.69,31.68]
[1748597785766,6.1438,162.7,162.69,31.68]
[1748597786360,6.1435,162.71,162.69,31.68]
[1748597787165,6.1438,162.7,162.69,31.68]
[1748597787563,0.04147629,162.74,162.66,31.68]
[1748597787762,6.79565033,162.75,162.66,31.68]
[1748597787763,6.1452,162.67,162.66,31.68]
[1748597791867,0.04165946,162.68,162.63,31.56]
[1748597792267,6.1456,162.66,162.63,37.7061]
[1748597793171,6.1451,162.67,162.63,37.7061]
[1748597793371,6.1451,162.67,162.64,6.146]
[1748597793571,0.04165946,162.68,162.63,38.35565033]
[1748597793969,6.1449,162.67,162.63,38.35565033]
[1748597794367,0.04165946,162.68,162.63,38.35565033]
[1748597795171,6.18645946,162.68,162.65,6.1456]
[1748597795676,6.145,162.67,162.64,6.1458]
[1748597795874,0.04165946,162.68,162.63,38.35565033]
[1748597796470,6.18645946,162.68,162.65,6.1456]
[1748597796773,0.04165946,162.68,162.63,31.56]
[1748597796965,6.1449,162.67,162.64,6.1458]
[1748597797164,0.04165946,162.68,162.63,31.56]
[1748597797670,6.18635946,162.68,162.63,31.56]
[1748597797969,0.04165946,162.68,162.63,31.56]
[1748597798168,0.04165946,162.68,162.67,12.94055033]
[1748597798367,0.04165946,162.68,162.67,44.50055033]
[1748597798570,0.04165946,162.68,162.64,31.56]
[1748597798774,0.04165946,162.68,162.63,31.56]
[1748597798775,6.1451,162.67,162.63,31.56]
[1748597799569,6.1451,162.67,162.64,6.1458]
[1748597799768,6.1454,162.66,162.63,31.56]
[1748597799973,0.04165946,162.68,162.63,31.56]
[1748597800773,6.1475,162.61,162.57,31.56]
[1748597800972,0.04639686,162.61,162.57,31.56]
[1748597801870,0.04639686,162.61,162.58,6.1483]
[1748597802275,6.1486,162.58,162.53,6.1501]
[1748597802478,0.04239948,162.57,162.49,31.56]
[1748597802675,0.03954804,162.55,162.48,33.08]
[1748597802984,6.18934804,162.55,162.48,33.08]
[1748597803277,0.03954804,162.55,162.5,6.79565033]
[1748597803682,34.68,162.67,162.53,6.79565033]
[1748597803872,34.68,162.67,162.54,34.68]
[1748597804070,6.1464,162.63,162.58,6.1482]
[1748597804277,1.9987,162.66,162.55,6.79565033]
[1748597804478,1.9987,162.66,162.54,34.68]
[1748597804672,0.04475407,162.61,162.58,0.04357018]
[1748597805485,0.04475407,162.61,162.58,34.72357018]
[1748597805876,0.04475407,162.61,162.6,6.1476]
[1748597807079,4.1697,162.69,162.58,34.72357018]
[1748597807279,4.1697,162.69,162.6,6.79565033]
[1748597807481,6.1446,162.68,162.6,6.79565033]
[1748597807877,6.1446,162.68,162.62,6.1467]
[1748597808083,0.04015409,162.67,162.63,34.72512137]
[1748597808682,6.1456,162.66,162.63,34.72512137]
[1748597809584,0.04015409,162.67,162.63,34.72512137]
[1748597811084,6.18535409,162.67,162.63,40.87132137]
[1748597811584,0.04015409,162.67,162.63,34.72512137]
[1748597813585,6.1454,162.66,162.63,34.72512137]
[1748597814993,0.04015409,162.67,162.63,41.5207717]
[1748597815888,0.04015409,162.67,162.65,6.1454]
[1748597816097,0.04015409,162.67,162.63,41.5207717]
[1748597816389,0.04015409,162.67,162.66,6.1453]
[1748597816586,0.04015409,162.67,162.63,41.5207717]
[1748597817091,0.04015409,162.67,162.66,6.1453]
[1748597817696,2.106,162.74,162.66,6.79565033]
[1748597817893,2.106,162.74,162.67,34.68]
[1748597818191,2.106,162.74,162.67,40.8248]
[1748597818689,0.03932376,162.72,162.69,0.04662417]
[1748597818888,6.1436,162.71,162.69,0.04662417]
[1748597819689,6.1438,162.7,162.69,0.04662417]
[1748597820194,6.1434,162.71,162.69,0.04662417]
[1748597820392,0.03932376,162.72,162.69,0.04662417]
[1748597820896,0.03932376,162.72,162.69,6.19072417]
[1748597821100,0.03932376,162.72,162.69,0.04662417]
[1748597821888,6.1438,162.7,162.69,0.04662417]
[1748597824196,0.03932376,162.72,162.69,0.04662417]
[1748597824899,6.1436,162.71,162.69,0.04662417]
[1748597825396,6.1438,162.7,162.69,0.04662417]
[1748597825999,0.03932376,162.72,162.64,34.68]
[1748597826296,5.78083536,162.71,162.64,34.68]
[1748597826498,6.1457,162.65,162.64,34.68]
[1748597827400,6.1461,162.64,162.63,0.04376208]
[1748597829100,6.18708889,162.66,162.63,0.04376208]
[1748597829296,6.18708889,162.66,162.64,6.146]
[1748597829297,0.04148889,162.66,162.64,6.146]
[1748597829501,0.04148889,162.66,162.63,0.04376208]
[1748597830602,0.04148889,162.66,162.64,6.1461]
[1748597830800,0.04148889,162.66,162.65,34.68]
[1748597831402,0.04148889,162.66,162.65,40.8257]
[1748597832197,0.04148889,162.66,162.65,34.68]
[1748597832798,6.18678889,162.66,162.65,34.68]
[1748597833002,0.04148889,162.66,162.65,34.68]
[1748597833697,6.18678889,162.66,162.65,34.68]
[1748597836903,6.1461,162.64,162.63,0.04376208]
[1748597838799,6.1476,162.6,162.59,34.14]
[1748597842806,0.04327156,162.61,162.59,34.14]
[1748597844610,6.1476,162.6,162.59,34.14]
[1748597845415,36.8757,162.58,162.23,28.91962919]
[1748597845602,18.43,162.55,162.32,6.80563701]
[1748597845801,6.80563701,162.43,162.29,161.06]
[1748597846001,6.80563701,162.43,162.32,6.1581]
[1748597846202,6.80563701,162.43,162.3,2.0415]
[1748597846407,0.04699126,162.38,162.3,2.0415]
[1748597846605,4.7597826,162.37,162.3,2.0415]
[1748597846800,4.7597826,162.36,162.3,2.0415]
[1748597847001,40.94563701,162.4,162.3,2.0415]
[1748597847002,4.80142685,162.35,162.3,2.0415]
[1748597847311,4.75922353,162.34,162.29,6.1592]
[1748597847512,4.75922353,162.33,162.3,34.14]
[1748597847804,0.04210714,162.35,162.3,34.14]
[1748597848009,4.74812184,162.34,162.3,34.14]
[1748597848311,4.74812184,162.33,162.3,96.14]
[1748597848501,4.75483938,162.32,162.3,96.14]
[1748597848707,4.75428345,162.31,162.3,96.14]
[1748597849214,0.04210714,162.35,162.3,96.14]
[1748597849418,4.75425158,162.34,162.3,96.14]
[1748597849614,4.75425158,162.33,162.3,96.14]
[1748597849911,4.75425158,162.32,162.3,96.14]
[1748597850108,4.75425158,162.31,162.3,34.14]
[1748597851015,4.73922409,162.31,162.3,34.14]
[1748597851210,4.73922409,162.31,162.3,40.2989]
[1748597851910,0.04210714,162.35,162.32,6.1581]
[1748597852109,4.73311956,162.34,162.3,34.14]
[1748597852311,0.04210714,162.35,162.3,34.14]
[1748597853111,4.73377972,162.34,162.3,96.14]
[1748597853311,4.73382952,162.33,162.3,96.14]
[1748597853720,4.73402967,162.32,162.3,96.14]
[1748597854018,4.73402967,162.31,162.3,102.2989]
[1748597854717,4.73382952,162.33,162.32,6.1582]
[1748597855018,9.45622164,162.33,162.32,6.1582]
[1748597855219,9.45619115,162.33,162.32,6.1582]
[1748597855417,9.4556143,162.33,162.32,6.1582]
[1748597855615,9.4556143,162.33,162.22,11.37723323]
[1748597855616,9.4556143,162.33,162.24,34.18]
[1748597855814,0.0392356,162.3,162.25,34.18]
[1748597856014,0.0392356,162.3,162.27,6.1597]
[1748597856519,4.71728733,162.29,162.27,6.1598]
[1748597856717,0.0392356,162.3,162.25,34.18]
[1748597857121,0.0392356,162.3,162.27,6.1599]
[1748597857316,0.0392356,162.3,162.25,34.18]
[1748597858524,0.0392356,162.3,162.27,6.1597]
[1748597859023,0.0392356,162.3,162.28,6.1597]
[1748597859727,0.0392356,162.3,162.27,6.16]
[1748597859921,0.0392356,162.3,162.25,34.18]
[1748597860224,0.0392356,162.3,162.28,6.1596]
[1748597860628,0.0392356,162.3,162.25,34.18]
[1748597861520,0.0392356,162.3,162.29,6.1593]
[1748597861925,0.0392356,162.3,162.29,42.1793]
[1748597862523,4.73382952,162.33,162.32,6.1582]
[1748597863228,9.13746259,162.33,162.24,36.02]
[1748597863527,9.13746259,162.33,162.27,0.04020958]
[1748597863528,0.04625117,162.3,162.27,0.04020958]
[1748597864228,4.40171153,162.29,162.27,0.04020958]
[1748597864430,6.1594,162.29,162.27,0.04020958]
[1748597864729,4.39854342,162.28,162.27,0.04020958]
[1748597865332,4.39852367,162.28,162.27,0.04020958]
[1748597866435,4.39923522,162.28,162.27,0.04020958]
[1748597866735,6.1597,162.28,162.27,0.04020958]
[1748597867232,10.56513068,162.28,162.27,0.04020958]
[1748597867437,4.40543068,162.28,162.27,0.04020958]
[1748597867738,10.56513068,162.28,162.27,0.04020958]
[1748597868135,6.1597,162.28,162.27,0.04020958]
[1748597868434,10.56655159,162.28,162.27,0.04020958]
[1748597868626,4.40685159,162.28,162.27,0.04020958]
[1748597869734,4.41177346,162.28,162.27,0.04020958]
[1748597870035,10.57147346,162.28,162.27,0.04020958]
[1748597870334,6.1597,162.28,162.27,0.04020958]
[1748597870534,10.52520667,162.28,162.27,0.04020958]
[1748597871234,4.21267258,162.28,162.27,0.04020958]
[1748597871633,4.21216505,162.28,162.2,99.62]
[1748597871831,4.21216505,162.27,162.2,37.62]
[1748597872027,4.21216505,162.27,162.13,6.076]
[1748597872028,4.21216505,162.26,162.13,6.076]
[1748597872231,4.20969504,162.25,162.13,39.5928]
[1748597872432,4.20969504,162.24,162.13,39.5928]
[1748597872634,0.04562562,162.2,162.13,39.5928]
[1748597872829,4.20969504,162.19,162.13,39.5928]
[1748597873029,0.04562562,162.2,162.13,39.5928]
[1748597873231,4.19841393,162.19,162.17,6.1637]
[1748597873430,538.3973,162.31,162.18,37.62]
[1748597873734,538.3973,162.31,162.23,6.1612]
[1748597873735,6.1596,162.29,162.23,6.1612]
[1748597873936,4.20021783,162.28,162.21,37.62]
[1748597874236,4.20025099,162.27,162.23,6.1615]
[1748597874545,4.20025099,162.26,162.23,0.04562562]
[1748597874737,0.0414553,162.27,162.23,0.04562562]
[1748597875235,0.0414553,162.27,162.24,6.1609]
[1748597875532,0.0414553,162.27,161.94,42.1]
[1748597875533,532.06,162.26,161.94,42.1]
[1748597875835,6.1648,162.15,162.0,11.38909796]
[1748597876040,4.20162209,162.14,162.01,44.181]
[1748597876237,4.20162209,162.13,162.01,44.181]
[1748597876442,0.04131312,162.09,162.01,182.041]
[1748597876741,4.19667198,162.08,162.01,42.1]
[1748597876941,0.04131312,162.09,162.01,42.1]
[1748597877241,6.1677,162.07,162.01,42.1]
[1748597877442,4.24661101,162.06,162.01,48.2699]
[1748597877641,0.04548508,162.06,162.01,42.1]
[1748597878033,0.04548508,162.06,162.02,6.1696]
[1748597878534,6.1663,162.11,162.05,6.1684]
[1748597878738,4.17826771,162.1,162.06,42.12]
[1748597878931,6.1663,162.11,162.06,42.12]
[1748597879137,4.17841238,162.1,162.06,42.12]
[1748597879334,11.41145293,162.14,162.06,42.12]
[1748597879540,0.04575508,162.12,162.08,0.04548508]
[1748597879735,6.1669,162.09,162.08,0.04548508]
[1748597879932,10.34926141,162.09,162.08,0.04548508]
[1748597880338,10.34933353,162.09,162.08,0.04548508]
[1748597880638,6.1669,162.09,162.08,0.04548508]
[1748597880835,6.1677,162.07,162.06,42.12]
[1748597881034,2.1551,162.11,162.06,42.12]
[1748597881235,6.1672,162.09,162.06,42.12]
[1748597881436,4.18802079,162.08,162.06,42.12]
[1748597881744,6.20694318,162.09,162.06,42.12]
[1748597882338,4.18313873,162.08,162.06,42.12]
[1748597882642,0.03974318,162.09,162.06,42.12]
[1748597882837,4.18110582,162.08,162.06,42.12]
[1748597883039,4.18110582,162.07,162.06,42.12]
[1748597883540,4.18311529,162.07,162.06,42.12]
[1748597883744,4.18247004,162.07,162.06,42.12]
[1748597884045,4.18150493,162.07,162.06,42.12]
[1748597884243,10.34920493,162.07,162.06,42.12]
[1748597884637,10.35145716,162.07,162.06,42.12]
[1748597884836,4.18375716,162.07,162.06,42.12]
[1748597885544,0.03974318,162.09,162.06,42.12]
[1748597885545,6.20674318,162.09,162.06,42.12]
[1748597885741,4.18639318,162.08,162.06,42.12]
[1748597886041,0.03974318,162.09,162.06,48.2878]
[1748597886246,0.03974318,162.09,162.06,42.12]